Cogmind - Beta 9.4 @@@ ROGUE MODE // 2020.03.20 @ 06:55:24 Player: alice_fexa Result: Self-destructed Performance ------------- Evolutions (3) 1500 Regions Visited (6) 1200 Robots Destroyed (55) 275 Value Destroyed (1303) 1303 Prototype IDs (14) 280 Alien Tech Used (0) 0 Bonus (0) 0 TOTAL SCORE: 4558 Bonus ------- None Cogmind --------- Core Integrity 502/700 Matter 264/300 Energy 62/100 System Corruption 1% Temperature Cool (4) Movement Flying (32) Location -7/Lower Caves Parts ------- > --- POWER (2) -------- (None) > --- PROPULSION (4) --- Improved Flight Unit Improved Cesium-ion Thruster > --- UTILITY (5) ------ Medium Storage Unit Advanced Signal Interpreter Hacking Suite System Shield > --- WEAPON (2) ------- Great Axe > --- INVENTORY (8) ---- Light Nuclear Core Advanced Weight Redist. System Advanced Sensor Array System Shield Datajack Heavy Flail Impact Mace Peak State ------------ > --- POWER ------------ Light Deuterium Engine Light Deuterium Engine > --- PROPULSION ------- Improved Flight Unit Cesium-ion Thruster Improved Cesium-ion Thruster Improved Cesium-ion Thruster > --- UTILITY ---------- Medium Storage Unit Advanced Sensor Array Advanced Signal Interpreter Hacking Suite System Shield > --- WEAPON ----------- Impact Mace Great Axe > --- INVENTORY -------- Light Nuclear Core Advanced Weight Redist. System Advanced Sensor Array System Shield Heavy Missile Launcher Datajack Heavy Flail [Rating: 46] Favorites ----------- Power Light Deuterium Engine Engine Light Deuterium Engine Power Core Light Nuclear Core Propulsion Wheel Treads Improved Treads Wheel Wheel Flight Unit Improved Flight Unit Utility Large Storage Unit Device Advanced Sensor Array Storage Large Storage Unit Processor Improved Signal Interpreter Hackware Hacking Suite Protection Light Armor Plating Weapon Light Assault Rifle Energy Gun Particle Gun Energy Cannon Advanced Beam Cannon Ballistic Gun Light Assault Rifle Launcher Heavy Missile Launcher Impact Weapon Impact Mace Slashing Weapon Katana Special Melee Weapon Datajack Build | -11 -10 -9 -8 -7 -7 -7 ------- Run | Scr Mat Mat Mat Fac Low Low Slots Evolved 6 | . . 2 2 2 . . Power 1 | . . . . 1 . . Propulsion 2 | . . 1 . 1 . . Utility 3 | . . 1 2 . . . Weapon . | . . . . . . . Parts Attached 82 | 6 8 15 22 25 5 1 Power 13 | 1 1 4 4 3 . . Engine 11 | 1 1 4 2 3 . . Core 2 | . . . 2 . . . Reactor . | . . . . . . . Propulsion 23 | 2 2 7 2 9 1 . Treads 6 | 1 1 3 . 1 . . Leg . | . . . . . . . Wheel 7 | 1 1 3 2 . . . Hover . | . . . . . . . Flight 10 | . . 1 . 8 1 . Utility 21 | 1 4 2 7 5 2 . Device 5 | . 1 . 3 1 . . Storage 6 | 1 3 1 . 1 . . Processor 2 | . . . 1 . 1 . Hackware 4 | . . . . 3 1 . Protection 4 | . . 1 3 . . . Artifact . | . . . . . . . Weapon 25 | 2 1 2 9 8 2 1 Energy Gun 5 | 1 1 1 2 . . . Energy Cannon 2 | . . . 2 . . . Ballistic Gun 7 | 1 . 1 4 1 . . Ballistic Cannon . | . . . . . . . Launcher 4 | . . . 1 1 1 1 Special Weapon . | . . . . . . . Impact Weapon 3 | . . . . 2 1 . Slashing Weapon 3 | . . . . 3 . . Piercing Weapon . | . . . . . . . Special Melee Weapon 1 | . . . . 1 . . Unidentified Prototypes 4 | . . 2 . 2 . . Parts Lost 13 | . . 3 1 1 2 6 Power 3 | . . 1 . . . 2 Propulsion 3 | . . . . . 1 2 Utility 3 | . . . . 1 1 1 Weapon 4 | . . 2 1 . . 1 Highest Loss Streak 6 | . . 2 1 1 2 6 Average Slot Usage (%) 96 | . 94 99 99 93 99 96 Engine 11 | . 14 10 6 12 15 13 Treads 5 | . 14 11 9 2 . . Wheel 10 | . 14 22 18 4 . . Flight 12 | . . . . 21 29 28 Device 7 | . 6 9 7 7 7 6 Storage 13 | . 16 22 18 9 7 7 Processor 5 | . . . 8 7 7 7 Hackware 6 | . . . . 12 14 15 Protection 2 | . . 1 10 . . . Energy Gun 4 | . 14 11 7 . . . Energy Cannon 1 | . . . 1 1 . . Ballistic Gun 5 | . 14 11 8 1 . . Impact Weapon 1 | . . . . 2 6 5 Slashing Weapon 2 | . . . . 5 7 7 Naked Turns . | . . . . . . . Heaviest Build 50 | 10 24 47 50 48 26 26 Greatest Support 28 | 10 20 26 26 27 28 28 Greatest Overweight (x) 2 | . 2 2 2 1 . . Average Overweight (x) . | . . 1 1 . . . Largest Inventory Capacity 16 | 6 12 16 16 16 8 8 Average Capacity 11 | 4 8 16 16 10 8 8 Most Carried 16 | 4 10 16 16 16 8 7 Average Carried 11 | 2 6 14 15 10 7 7 Final Capacity 16 | 6 10 16 16 8 8 8 Final Carried 16 | 4 10 16 16 8 7 7 Class Distribution -------------------- 49% | Mutant 41% | Hacker-Sprinter 8% | Scavenger-Mutant Dominant Class ---------------- Mutant | -10/Materials Scavenger-Mutant | -9/Materials Mutant | -8/Materials Hacker-Sprinter | -7/Factory Hacker-Sprinter | -7/Lower Caves Hacker-Sprinter | -7/Lower Caves Resources | -11 -10 -9 -8 -7 -7 -7 ----------- Run | Scr Mat Mat Mat Fac Low Low Matter Collected 1316 | 207 155 190 365 283 116 . Remotely . | . . . . . . . Salvage Created 1961 | . 393 545 649 323 29 22 Parts 109 | . 18 29 37 24 1 . Haulers Intercepted 9 | . 1 3 2 3 . . Recyclers Shooed 3 | . 2 . 1 . . . Parts Field Recycled . | . . . . . . . Retrieved Matter . | . . . . . . . Parts Self-Destructed 1 | . . . . . 1 . Prevented . | . . . . . . . Kills | -11 -10 -9 -8 -7 -7 -7 ------- Run | Scr Mat Mat Mat Fac Low Low Combat Hostiles Destroyed 32 | . 6 4 11 4 4 3 Melee 3 | . . . . 1 1 1 Guns 17 | . 6 4 7 . . . Cannons 1 | . . . 1 . . . AOE 11 | . . . 3 3 3 2 Classes Destroyed 11 | . 3 2 3 3 . . Worker 3 | . . . 1 2 . . Builder 1 | . . . . 1 . . Hauler 9 | . 1 3 2 3 . . Recycler 5 | . 1 3 1 . . . Operator 3 | . . 1 1 1 . . Watcher 2 | . . . . 2 . . Swarmer 13 | . . . 3 3 4 3 Grunt 14 | . 6 3 5 . . . Brawler 1 | . . 1 . . . . Sentry 3 | . . . 3 . . . Programmer 1 | . . . . 1 . . Best Kill Streak 6 | . 3 4 3 6 3 2 Combat Bots Only 3 | . 2 2 3 3 3 2 Max Kills in Single Turn 3 | . 1 1 3 3 2 1 Gunslinging . | . . . . . . . Exploded 3 | . . . 3 2 2 1 Melee 1 | . . . . 1 1 1 Uniques/NPCs Destroyed . | . . . . . . . Combat | -11 -10 -9 -8 -7 -7 -7 -------- Run | Scr Mat Mat Mat Fac Low Low Damage Taken 1625 | . 339 108 459 102 334 283 Core 369 | . 93 15 63 . 110 88 Absorbed by Shields . | . . . . . . . Core Remaining (%) 86 | 100 62 96 88 . . . Volleys Fired 112 | . 32 30 40 2 4 4 Largest 2 | . 2 2 2 1 1 1 Hottest 88 | . 70 85 88 30 39 39 Shots Fired 212 | . 64 60 78 2 4 4 Gun 194 | . 64 60 70 . . . Cannon 6 | . . . 6 . . . Launcher 12 | . . . 2 2 4 4 Special . | . . . . . . . Kinetic 100 | . 32 30 38 . . . Thermal 94 | . 32 30 32 . . . Explosive 12 | . . . 2 2 4 4 Electromagnetic 6 | . . . 6 . . . Robot Hit Streak 16 | . 9 5 16 . 1 2 Robot Miss Streak 2 | . 2 2 2 . 1 . Penetration Max . | . . . . . . . Secondary Targets . | . . . . . . . Shots Hit Robots 174 | . 47 36 61 25 2 3 Core Hits 88 | . 18 17 29 14 8 2 Critical Hits 3 | . 1 . 1 1 . . Critical Kills 1 | . . . 1 . . . Critical Parts Destroyed 2 | . 1 . . 1 . . Melee Attacks 105 | . . . . 71 15 19 Impact 16 | . . . . 12 2 2 Slashing 87 | . . . . 57 13 17 Piercing . | . . . . . . . Sneak Attacks 8 | . . . . 8 . . Combat Hostiles . | . . . . . . . Follow-up Attacks 4 | . . . . 4 . . Damage Inflicted 4280 | . 466 475 1100 1463 423 353 Guns 1783 | . 466 475 842 . . . Cannons 132 | . . . 132 . . . Explosions 1091 | . . . 126 268 374 323 Melee 1274 | . . . . 1195 49 30 Ramming . | . . . . . . . Kinetic 747 | . 168 123 456 . . . Thermal 1036 | . 298 352 386 . . . Explosive 1091 | . . . 126 268 374 323 Electromagnetic 132 | . . . 132 . . . Impact 206 | . . . . 206 . . Slashing 1068 | . . . . 989 49 30 Piercing . | . . . . . . . Highest Corruption 2 | . 2 . . 1 1 1 Average Corruption 1 | . 2 . . 1 1 1 Corruption Purged . | . . . . . . . Effects 11 | . . . . 7 3 1 Message Errors 5 | . . . . 3 1 1 Energy Discharges 3 | . . . . 1 2 . Data Loss (minor) 2 | . . . . 2 . . Targeting Errors 1 | . . . . 1 . . Overload Shots . | . . . . . . . Overflow Damage 301 | . . . 14 199 7 81 Projectiles 14 | . . . 14 . . . Explosions 66 | . . . . . 7 59 Melee 221 | . . . . 199 . 22 Knockbacks 1 | . . . . 1 . . Impact 1 | . . . . 1 . . Kinetic . | . . . . . . . Secondary . | . . . . . . . Self-Inflicted Damage 73 | . . . 15 . 58 . Shots 3 | . . . 1 . 2 . Rammed . | . . . . . . . Targets Rammed . | . . . . . . . Kicked . | . . . . . . . Crushed . | . . . . . . . Highest Temperature 162 | . 162 68 54 1 21 17 Average Temperature 28 | . 51 21 15 1 9 10 Received Heat Transfer 402 | . 192 51 126 . 27 6 Siege Activations . | . . . . . . . Robots Corrupted . | . . . . . . . Combat Hostiles . | . . . . . . . Parts Fried 1 | . . . 1 . . . Impact Corruptions 2 | . . . . 2 . . Robots Melted . | . . . . . . . Combat Hostiles . | . . . . . . . Parts Melted 4 | . 2 . 2 . . . Heat Transferred 2664 | . 888 851 925 . . . Parts Sabotaged . | . . . . . . . Parts Stolen . | . . . . . . . Parts Stripped . | . . . . . . . Power Chain Reactions . | . . . . . . . Missiles Intercepted . | . . . . . . . Alert | -11 -10 -9 -8 -7 -7 -7 ------- Run | Scr Mat Mat Mat Fac Low Low Peak Influence 485 | . 194 209 254 485 . . Average Influence 131 | . 101 111 144 142 . . Maximum Alert Level 2 | . . 1 1 2 . . Low Security (%) 88 | 100 100 89 85 86 . . Level 1 7 | . . 10 14 4 . . Level 2 3 | . . . . 9 . . Level 3 . | . . . . . . . Level 4 . | . . . . . . . Level 5 . | . . . . . . . High Security . | . . . . . . . Max Security . | . . . . . . . Squads Dispatched 9 | . 1 1 1 6 . . Investigation 2 | . . . . 2 . . Extermination 2 | . . . . 2 . . Reinforcement 5 | . 1 1 1 2 . . Assault . | . . . . . . . Garrison . | . . . . . . . Intercept . | . . . . . . . Construction Impeded . | . . . . . . . Haulers Reinforced 1 | . . . . 1 . . Stealth | -11 -10 -9 -8 -7 -7 -7 --------- Run | Scr Mat Mat Mat Fac Low Low Distress Signals 2 | . . 1 1 . . . Communications Jammed . | . . . . . . . Distress Signals . | . . . . . . . Times Spotted 63 | . 11 10 18 14 6 4 Peak Tracking Total 5 | . 3 5 5 5 4 4 Tactical Retreats 7 | . 1 . 1 3 2 . Traps | -11 -10 -9 -8 -7 -7 -7 ------- Run | Scr Mat Mat Mat Fac Low Low Traps Triggered 7 | . 1 . 1 5 . . Indirectly . | . . . . . . . Trap Hack Attempts . | . . . . . . . Triggered . | . . . . . . . Disarmed . | . . . . . . . Reprogrammed . | . . . . . . . Reused . | . . . . . . . Traps Extracted . | . . . . . . . Installed . | . . . . . . . Triggered . | . . . . . . . Machines | -11 -10 -9 -8 -7 -7 -7 ---------- Run | Scr Mat Mat Mat Fac Low Low Machines Disabled 4 | . . . 4 . . . Max in Single Turn 1 | . . . 1 . . . Garrison Access 2 | . . . 1 1 . . Machines Sabotaged . | . . . . . . . Garrisons Compromised . | . . . . . . . Overloaded Fab Kills . | . . . . . . . Fab Network Shutdowns 1 | . . . . 1 . . Hacking | -11 -10 -9 -8 -7 -7 -7 --------- Run | Scr Mat Mat Mat Fac Low Low Machines Accessed 27 | . 3 4 3 17 . . Terminals 22 | . 3 4 2 13 . . Fabricators 2 | . . . . 2 . . Repair Stations . | . . . . . . . Recycling Units . | . . . . . . . Scanalyzers . | . . . . . . . Garrison Access 3 | . . . 1 2 . . Total Hacks 79 | . 8 15 14 42 . . Successful 44 | . 2 12 8 22 . . Failed 35 | . 6 3 6 20 . . Catastrophic 2 | . 1 1 . . . . Database Lockouts . | . . . . . . . Manual 34 | . 5 11 7 11 . . Terminals 66 | . 8 15 13 30 . . Fabricators 7 | . . . . 7 . . Repair Stations . | . . . . . . . Recycling Units . | . . . . . . . Scanalyzers . | . . . . . . . Garrison Access 6 | . . . 1 5 . . Terminal Hacks 27 | . . 5 6 16 . . Part Schematic 4 | . . . 2 2 . . Prototype ID Bank 4 | . . . 1 3 . . Branch Access Points 1 | . . . . 1 . . Terminal Index 1 | . . . . 1 . . Fabricator Index 1 | . . . . 1 . . Alert Level 3 | . . . 1 2 . . Unreport Threat 5 | . . 2 . 3 . . Locate Traps 6 | . . 2 1 3 . . Hauler Manifests 1 | . . . 1 . . . Zone Layout 1 | . . 1 . . . . Fabricator Hacks 3 | . . . . 3 . . Load Schematic 2 | . . . . 2 . . Build 1 | . . . . 1 . . Repair Station Hacks . | . . . . . . . Recycling Unit Hacks . | . . . . . . . Scanalyzer . | . . . . . . . Garrison Access Hacks 2 | . . . 1 1 . . Seal Access 2 | . . . 1 1 . . Unauthorized Hacks 29 | . 7 15 3 4 . . Terminals 12 | . 2 7 1 2 . . Track 4 | . . 4 . . . . Botnet 8 | . 2 3 1 2 . . Fabricators . | . . . . . . . Repair Stations . | . . . . . . . Recycling Units . | . . . . . . . Scanalyzers . | . . . . . . . Garrison Access . | . . . . . . . Data Cores Recovered 1 | . . . . 1 . . Used . | . . . . . . . Hacking Detections 25 | . 3 3 2 17 . . Full Trace Events 1 | . . . . 1 . . Feedback Events . | . . . . . . . Feedback Blocked . | . . . . . . . Robot Schematics Acquired . | . . . . . . . Robots Built . | . . . . . . . Matter . | . . . . . . . Time . | . . . . . . . Total Robot Build Rating . | . . . . . . . Part Schematics Acquired 4 | . . . 2 2 . . Parts Built 1 | . . . . 1 . . Matter 146 | . . . . 146 . . Time 73 | . . . . 73 . . Total Part Build Rating 3 | . . . . 3 . . Parts Repaired . | . . . . . . . Time . | . . . . . . . Parts Recycled . | . . . . . . . Recycled Matter . | . . . . . . . Retrieved Matter . | . . . . . . . Retrieved Components . | . . . . . . . Parts Scanalyzed . | . . . . . . . Part Schematics Acquired . | . . . . . . . Parts Damaged . | . . . . . . . Bothacking | -11 -10 -9 -8 -7 -7 -7 ------------ Run | Scr Mat Mat Mat Fac Low Low Used RIF Installer . | . . . . . . . Robots Hacked 2 | . . . . 2 . . Non-combat 2 | . . . . 2 . . Combat . | . . . . . . . Robot Hacks Applied 2 | . . . . 2 . . find_chute 1 | . . . . 1 . . find_fabricator 1 | . . . . 1 . . Relay Couplers Released . | . . . . . . . Robots Rewired . | . . . . . . . Allies Hacked . | . . . . . . . Hacks Repelled . | . . . . . . . Allies | -11 -10 -9 -8 -7 -7 -7 -------- Run | Scr Mat Mat Mat Fac Low Low Total Allies . | . . . . . . . Largest Group . | . . . . . . . Highest-Rated Group . | . . . . . . . Highest-Rated Ally . | . . . . . . . Total Orders . | . . . . . . . Ally Attacks . | . . . . . . . Total Damage . | . . . . . . . Kills . | . . . . . . . Allies Corrupted . | . . . . . . . Allies Melted . | . . . . . . . Intel | -11 -10 -9 -8 -7 -7 -7 ------- Run | Scr Mat Mat Mat Fac Low Low Robot Analysis Total . | . . . . . . . Derelict Logs Recovered 1 | . . . . . 1 . Drone Launches . | . . . . . . . Drone Recoveries . | . . . . . . . Exploration | -11 -10 -9 -8 -7 -7 -7 ------------- Run | Scr Mat Mat Mat Fac Low Low Turns Passed 3833 | 48 372 498 969 1311 372 263 Spaces Moved 3745 | 45 237 348 624 1622 553 316 Core 1 | 1 . . . . . . Treads 16 | . 14 2 . . . . Legs . | . . . . . . . Wheels 1480 | 44 223 346 624 243 . . Hover . | . . . . . . . Flight 2248 | . . . . 1379 553 316 Fastest Speed 27 | 50 80 90 100 27 27 27 Average Speed 55 | 79 91 99 100 38 27 27 Slowest Speed 200 | 80 160 200 100 100 27 32 Overloaded Moves . | . . . . . . . Propulsion Burnouts . | . . . . . . . Robots Hopped . | . . . . . . . Cave-ins Triggered . | . . . . . . . Exploration Rate (%) 41 | 3 30 30 51 59 68 49 Regions Visited 6 Branch Regions 2 Pre-discovered Areas . | . . . . . . . Known Exits Taken 3 | . . . 1 1 1 . Unknown Exits Taken 3 | 1 1 1 . . . . Scrap Searched 6 | . . . . . 5 1 Spaces Dug 53 | . . . . 32 9 12 Terrain Destroyed 169 | . . . 18 37 63 51 Melee 53 | . . . . 32 9 12 Projectile . | . . . . . . . AOE 116 | . . . 18 5 54 39 Actions | -11 -10 -9 -8 -7 -7 -7 --------- Run | Scr Mat Mat Mat Fac Low Low Total 5166 | 54 336 454 904 2216 745 457 Wait 975 | . 44 20 182 440 170 119 Move 3739 | 44 236 347 623 1621 552 316 Hop . | . . . . . . . Pick Up 61 | 4 8 21 13 14 1 . Fast Attach 30 | 6 2 5 8 9 . . Attach 16 | . . 4 2 8 2 . Detach 1 | . . . . 1 . . Swap 37 | . 6 7 12 8 3 1 Drop 77 | . 8 20 24 25 . . Fire 112 | . 32 30 40 2 4 4 Melee 92 | . . . . 62 13 17 Ram . | . . . . . . . Kick . | . . . . . . . Crush . | . . . . . . . Escape Stasis 26 | . . . . 26 . . Rewire . | . . . . . . . Trap . | . . . . . . . Miscellaneous . | . . . . . . . Route ------- -11/Scrapyard -10/Materials -9/Materials (discovered 2 exits: *Mat / [*Sto]) -8/Materials -7/Factory (discovered 5 exits: *Fac x3 / *Low x2) -7/Lower Caves (discovered 2 exits: *Low / *Dat) -7/Lower Caves (discovered 1 exit: *Dat) History --------- Turn | Location | Event 12 | -11/Scrapyard | Discovered new exit (range 15) 49 | -11/Scrapyard | Entered Materials 304 | -10/Materials | Build established: Mutant 366 | -10/Materials | Discovered new exit (range 15) 421 | -10/Materials | Entered another Materials area 421 | -9/Materials | Evolved 2 slots: Propulsion x1, Utility x1 641 | -9/Materials | Discovered new exit (range 3) 800 | -9/Materials | Build established: Scavenger-Mutant 862 | -9/Materials | Discovered new exit (range 8) 919 | -9/Materials | Entered another Materials area 919 | -8/Materials | Evolved 2 slots: Utility x2 1134 | -8/Materials | Build established: Mutant 1238 | -8/Materials | Discovered new exit (range 7) 1887 | -8/Materials | Identified exit to Factory 1888 | -8/Materials | Entered Factory 1888 | -7/Factory | Evolved 2 slots: Power x1, Propulsion x1 2209 | -7/Factory | Identified exit to Lower Caves 2544 | -7/Factory | Build established: Hacker-Sprinter 2693 | -7/Factory | Local fabrication network quarantined 2727 | -7/Factory | Fabricated System Shield (x1) 2796 | -7/Factory | Discovered new exit (range 5) 2797 | -7/Factory | Identified exit to Factory 2922 | -7/Factory | Discovered exit to Factory (range 4) 3171 | -7/Factory | Discovered exit to Factory (range 12) 3199 | -7/Factory | Entered Lower Caves 3240 | -7/Lower Caves | A Derelict revealed a hidden shortcut to meet someone special 3248 | -7/Lower Caves | Identified exit to Data Miner 3313 | -7/Lower Caves | Attracted the attention of an 0b10 checkpoint 3319 | -7/Lower Caves | Learned location of 1 exit from Factory 3571 | -7/Lower Caves | Discovered new exit (range 2) 3571 | -7/Lower Caves | Identified exit to Lower Caves 3571 | -7/Lower Caves | Entered another Lower Caves area 3742 | -7/Lower Caves | Spotted B-75 Beast 3747 | -7/Lower Caves | Discovered exit to Data Miner (range 14) 3830 | -7/Lower Caves | Attracted the attention of an 0b10 checkpoint 3834 | -7/Lower Caves | Self-destructed Last Messages --------------- LOCATION=LOWER CAVES GOAL=ESCAPE 03739_ Searching scrap... 03739_ Found 39 Matter. 03739_ Found Imp. Aluminum Leg. 03747_ EXIT=FOUND: DATA MINER 03800_ Cesium-ion Thruster destroyed. 03801_ S-27 Virus destroyed. 03803_ Destroyed VTOL Module. 03803_ Destroyed Lgt. Nuclear Core. 03804_ Lgt. Deuterium Engine destroyed. 03804_ Hvy. Missile Launcher destroyed. 03819_ EO0CLJ<2 8RAQKAM3KLDU, MK 03819_ Lgt. Deuterium Engine destroyed. 03823_ Adv. Sensor Array destroyed. 03825_ Imp. Cesium-ion Thruster destroyed. 03829_ Destroyed VTOL Module. 03829_ Destroyed Autogun. 03829_ S-27 Virus destroyed. 03830_ Y-54 Guardian: "INTERCEPTING UNREGISTERED DERELICT." Map ----- +----------------------------------------------------+ | ?????????????????????????????????????????????????? | | ?????????????????????????????????????????????????? | | ?????????????????????????????????????????????????? | | ?????????????????????????????????????????????????? | | ?????????????????????????????????????????????????? | | ?????????????????????????????????????????????????? | | ?????????????????????????????????????????????????? | | ?????????????????????????????????????????????????? | | ?????????????????????????????????????????????????? | | ?????????????????????????????????????????????????? | | ?????????????????????????????????????????????????? | | ?????????????????????????????????????????????????? | | ?????????????????????????????????????????????????? | | ?????????????????????????????####????????????????? | | ????????????????????????????# ##???????????????? | | ??????????????????????#????? ##??????????????? | | ???????????????#??????# ???? ####???????????? | | ??????????????## ????## ???# #??????????? | | ?????????????## #### ?### ##?????????? | | ?????????????? ## ##????????? | | ???????????????# ????????? | | ????????????????# ????????? | | ?????????????????# ????????? | | ??????????????????# #??????????? | | ????????????????????# #???????????? | | ???????????????????## @ #????????????? | | ???????????????????# #?????????????? | | ??????????????????# ## ##?????????????? | | ??????????????????# ??### ##?????????????? | | ??????????????????# ?????## #?????????????? | | ??????????????????#????????# ##???? ????? | | ?????????????""""??????????# ##??? #?### | | ???????????### ??????????## ##?? #?# | | ???????????# # ##?????????# #?? #??# | | ??????????? ?????????# #?? ???## | | ??????????? #??####### % #??# ????? | | ????????????? ### ### #?## #????? | | ????????????? ##?## #?# #????? | | ????????? ## ### ##???##?# #????? | | ????????? #?# #??????# ##???? | | ?????????? < ### #??????# #???? | | ??????????? #???#### #???## | | ??????????? #??## #???# | | ??????????? #### #??# ##### | | ???????????# ####??# ##?# ## | | ????????????######### #??????# #?# =% | | ???????????????????????????### ### ### | | ???????????????????????????# ### #? | | ???????????????????????????# ### #? | | ???????????????????????????## ### #? | +----------------------------------------------------+ Best States ------------- Heat Dissipation 45 Energy Generation 23 Energy Capacity 265 Matter Stores 300 Matter Capacity 300 Sight Range 16 Robot Scan Range 16 Terrain Scan Density 10 Armor Coverage 300 Evasion (%) 64 Recoil Reduction 1 Offensive Hacking 20 Defensive Hacking 10 Item Schematics ----------------- Imp. Flight Unit | -8/Materials | Hacked Adv. Sensor Array | -8/Materials | Hacked System Shield | -7/Factory | Hacked Hacking Suite | -7/Factory | Hacked Robot Schematics ------------------ None Fabricated ------------ System Shield | x1 | -7/Factory Alien Tech Used ----------------- None Achievements -------------- None Challenges ------------ None Game ------ Seed ParticleThermalSuite Manual? 0 Play Time 00:41:49 Cumulative 738.9 hours Start 2020.03.18 @ 14:25:08 End 2020.03.20 @ 06:55:24 Sessions 3 Manual Loads 0 Difficulty Rogue Special Mode None Game No. 656 Rogue 616 Adventurer 40 Explorer 0 Win Type - Total 66 Types 47/2/14/2/0/0/1 Lore% 92 Gallery% 94 Achievement% 74 Wizard Run 0 Options --------- ASCII 0 Keyboard 0 Movement Numpad Keybinds 0 Fullscreen 0 Font 16/Terminus Map View 76x50 Tactical HUD 1 Map Filters NONE Filters NONE Steam 1 RUN: 4e3ac769-2260-4e9f-9175-8c55efe6642b